[Event "Titled Tuesday Blitz March 28 Early 2023"]
[White "babbilator"]
[Black "Aslanov, Umid"]
[BlackFideId "13412620"]
[WhiteElo "2223"]
[BlackElo "2103"]
[Result "0-1"]
[Round "01"]
[TimeControl "180+2"]
[Date "2023.03.28"]
[WhiteClock "0:00:08"]
[BlackClock "0:01:01"]

1. e4 {[%clk 0:02:57]}  e5 {[%clk 0:03:00]} 2. Nc3 {[%clk 0:02:57]}  Nf6 {[%clk 0:02:59]} 3. Nf3 {[%clk 0:02:57]}  Nc6 {[%clk 0:02:57]} 4. Bb5 {[%clk 0:02:58]}  d6 {[%clk 0:02:56]} 5. d4 {[%clk 0:02:57]}  exd4 {[%clk 0:02:56]} 6. Nxd4 {[%clk 0:02:55]}  Bd7 {[%clk 0:02:56]} 7. O-O {[%clk 0:02:55]}  Be7 {[%clk 0:02:55]} 8. Re1 {[%clk 0:02:47]}  O-O {[%clk 0:02:55]} 9. Bf4 {[%clk 0:02:46]}  a6 {[%clk 0:02:55]} 10. Bxc6 {[%clk 0:02:36]}  bxc6 {[%clk 0:02:55]} 11. e5 {[%clk 0:02:18]}  dxe5 {[%clk 0:02:55]} 12. Bxe5 {[%clk 0:02:16]}  Rb8 {[%clk 0:02:51]} 13. b3 {[%clk 0:01:39]}  Re8 {[%clk 0:02:48]} 14. Qf3 {[%clk 0:01:33]}  c5 {[%clk 0:02:48]} 15. Nf5 {[%clk 0:01:32]}  Bxf5 {[%clk 0:02:48]} 16. Qxf5 {[%clk 0:01:32]}  g6 {[%clk 0:02:47]} 17. Qf3 {[%clk 0:01:25]}  Rb6 {[%clk 0:02:12]} 18. Rad1 {[%clk 0:01:23]}  Qc8 {[%clk 0:02:11]} 19. Na4 {[%clk 0:01:11]}  Re6 {[%clk 0:02:09]} 20. Bxf6 {[%clk 0:01:08]}  Rxf6 {[%clk 0:02:07]} 21. Qc3 {[%clk 0:00:48]}  Qf5 {[%clk 0:02:05]} 22. Re2 {[%clk 0:00:39]}  Kg7 {[%clk 0:02:00]} 23. Rde1 {[%clk 0:00:38]}  Rd8 {[%clk 0:01:29]} 24. f3 {[%clk 0:00:35]}  Bd6 {[%clk 0:01:26]} 25. Nb2 {[%clk 0:00:24]}  Qf4 {[%clk 0:01:20]} 26. g3 {[%clk 0:00:16]}  Qxf3 {[%clk 0:01:20]} 27. Qxf3 {[%clk 0:00:13]}  Rxf3 {[%clk 0:01:21]} 28. Nc4 {[%clk 0:00:13]}  h5 {[%clk 0:01:14]} 29. Rd1 {[%clk 0:00:09]}  h4 {[%clk 0:01:12]} 30. Kg2 {[%clk 0:00:09]}  Rc3 {[%clk 0:01:06]} 31. Rd3 {[%clk 0:00:08]}  Rxd3 {[%clk 0:01:06]} 32. cxd3 {[%clk 0:00:09]}  hxg3 {[%clk 0:01:06]} 33. hxg3 {[%clk 0:00:09]}  Bf8 {[%clk 0:01:04]} 34. Re3 {[%clk 0:00:08]}  Rd4 {[%clk 0:01:02]} 35. Kf3 {[%clk 0:00:08]}  Bd6 {[%clk 0:01:02]} 36. Ke2 {[%clk 0:00:08]}  Rg4 {[%clk 0:01:01]} 0-1


[Site "https://www.chess.com"]

[Event "Titled Tuesday Blitz March 28 Early 2023"]
[White "Raahul V S"]
[Black "Fabris, Alberto"]
[WhiteFideId "25035525"]
[BlackFideId "801348"]
[WhiteElo "2168"]
[BlackElo "2214"]
[Result "1-0"]
[Round "01"]
[TimeControl "180+2"]
[Date "2023.03.28"]
[WhiteClock "0:01:02"]
[BlackClock "0:00:05"]

1. c4 {[%clk 0:02:59]}  e5 {[%clk 0:02:59]} 2. Nc3 {[%clk 0:02:59]}  Nf6 {[%clk 0:02:59]} 3. g3 {[%clk 0:03:00]}  Bb4 {[%clk 0:02:58]} 4. Bg2 {[%clk 0:03:00]}  O-O {[%clk 0:02:58]} 5. Nf3 {[%clk 0:03:00]}  Re8 {[%clk 0:02:58]} 6. O-O {[%clk 0:02:59]}  d6 {[%clk 0:02:55]} 7. Nd5 {[%clk 0:02:46]}  Nxd5 {[%clk 0:02:53]} 8. cxd5 {[%clk 0:02:46]}  Nd7 {[%clk 0:02:46]} 9. d4 {[%clk 0:02:43]}  exd4 {[%clk 0:02:45]} 10. Nxd4 {[%clk 0:02:44]}  Nf6 {[%clk 0:02:42]} 11. Nb3 {[%clk 0:02:37]}  Bc5 {[%clk 0:02:25]} 12. Nxc5 {[%clk 0:02:34]}  dxc5 {[%clk 0:02:26]} 13. Be3 {[%clk 0:02:27]}  Qd6 {[%clk 0:02:22]} 14. Rc1 {[%clk 0:02:22]}  b6 {[%clk 0:02:12]} 15. b4 {[%clk 0:02:20]}  cxb4 {[%clk 0:02:09]} 16. Bf4 {[%clk 0:02:19]}  Qd7 {[%clk 0:01:49]} 17. Rxc7 {[%clk 0:02:15]}  Qb5 {[%clk 0:01:47]} 18. d6 {[%clk 0:02:14]}  Bd7 {[%clk 0:01:36]} 19. Bxa8 {[%clk 0:01:54]}  Rxa8 {[%clk 0:01:37]} 20. Qd3 {[%clk 0:01:54]}  Qxd3 {[%clk 0:01:33]} 21. exd3 {[%clk 0:01:55]}  Bb5 {[%clk 0:01:23]} 22. Rfc1 {[%clk 0:01:52]}  h6 {[%clk 0:01:12]} 23. Be5 {[%clk 0:01:46]}  Nd5 {[%clk 0:01:03]} 24. Rc8+ {[%clk 0:01:43]}  Rxc8 {[%clk 0:01:02]} 25. Rxc8+ {[%clk 0:01:44]}  Kh7 {[%clk 0:01:03]} 26. Rd8 {[%clk 0:01:45]}  f6 {[%clk 0:00:57]} 27. d7 {[%clk 0:01:41]}  Kg6 {[%clk 0:00:47]} 28. Bb8 {[%clk 0:01:39]}  a5 {[%clk 0:00:41]} 29. Bd6 {[%clk 0:01:37]}  a4 {[%clk 0:00:36]} 30. f4 {[%clk 0:01:21]}  b3 {[%clk 0:00:32]} 31. axb3 {[%clk 0:01:21]}  axb3 {[%clk 0:00:32]} 32. Ba3 {[%clk 0:01:21]}  Kf5 {[%clk 0:00:27]} 33. Kf2 {[%clk 0:01:16]}  g5 {[%clk 0:00:25]} 34. fxg5 {[%clk 0:01:14]}  hxg5 {[%clk 0:00:24]} 35. h4 {[%clk 0:01:14]}  Kg4 {[%clk 0:00:20]} 36. h5 {[%clk 0:01:13]}  f5 {[%clk 0:00:13]} 37. h6 {[%clk 0:01:14]}  Nf6 {[%clk 0:00:13]} 38. Rf8 {[%clk 0:01:07]}  Nxd7 {[%clk 0:00:09]} 39. h7 {[%clk 0:01:08]}  Nxf8 {[%clk 0:00:08]} 40. h8=Q {[%clk 0:01:08]}  Ng6 {[%clk 0:00:06]} 41. Qd4+ {[%clk 0:01:04]}  Kh5 {[%clk 0:00:05]} 42. Qd5 {[%clk 0:01:02]} 1-0


[Site "https://www.chess.com"]

[Event "Titled Tuesday Blitz March 28 Early 2023"]
[White "mjelcic"]
[Black "Budrewicz, Krzysztof"]
[BlackFideId "1127950"]
[WhiteElo "2212"]
[BlackElo "2230"]
[Result "1-0"]
[Round "01"]
[TimeControl "180+2"]
[Date "2023.03.28"]
[WhiteClock "0:00:19"]
[BlackClock "0:00:07"]

1. e4 {[%clk 0:02:59]}  g6 {[%clk 0:02:56]} 2. d4 {[%clk 0:02:58]}  Bg7 {[%clk 0:02:57]} 3. Nc3 {[%clk 0:02:59]}  c5 {[%clk 0:02:57]} 4. Be3 {[%clk 0:02:56]}  Qa5 {[%clk 0:02:54]} 5. dxc5 {[%clk 0:02:39]}  Bxc3+ {[%clk 0:02:53]} 6. bxc3 {[%clk 0:02:37]}  Qxc3+ {[%clk 0:02:53]} 7. Bd2 {[%clk 0:02:37]}  Qxc5 {[%clk 0:02:53]} 8. Nf3 {[%clk 0:02:37]}  Nc6 {[%clk 0:02:51]} 9. Bd3 {[%clk 0:02:36]}  Nf6 {[%clk 0:02:51]} 10. O-O {[%clk 0:02:36]}  d6 {[%clk 0:02:48]} 11. Re1 {[%clk 0:02:33]}  O-O {[%clk 0:02:45]} 12. Bg5 {[%clk 0:02:24]}  Ng4 {[%clk 0:02:30]} 13. Qd2 {[%clk 0:02:21]}  Be6 {[%clk 0:02:25]} 14. h3 {[%clk 0:02:19]}  Nge5 {[%clk 0:02:25]} 15. Nxe5 {[%clk 0:02:16]}  dxe5 {[%clk 0:02:25]} 16. a4 {[%clk 0:02:03]}  Rfd8 {[%clk 0:02:24]} 17. Rab1 {[%clk 0:01:59]}  b6 {[%clk 0:02:15]} 18. Qe3 {[%clk 0:01:55]}  Qxe3 {[%clk 0:02:14]} 19. Bxe3 {[%clk 0:01:55]}  Rac8 {[%clk 0:02:10]} 20. Rb5 {[%clk 0:01:49]}  f6 {[%clk 0:02:07]} 21. Ra1 {[%clk 0:01:46]}  Na5 {[%clk 0:01:56]} 22. Rab1 {[%clk 0:01:35]}  Bc4 {[%clk 0:01:48]} 23. Bxc4+ {[%clk 0:01:25]}  Rxc4 {[%clk 0:01:47]} 24. Rd5 {[%clk 0:01:20]}  Rxd5 {[%clk 0:01:39]} 25. exd5 {[%clk 0:01:21]}  Rxa4 {[%clk 0:01:33]} 26. Rd1 {[%clk 0:01:14]}  Nc4 {[%clk 0:01:32]} 27. Bh6 {[%clk 0:01:04]}  Kf7 {[%clk 0:01:30]} 28. h4 {[%clk 0:01:04]}  Ra2 {[%clk 0:01:24]} 29. f4 {[%clk 0:00:59]}  e4 {[%clk 0:01:16]} 30. f5 {[%clk 0:00:55]}  gxf5 {[%clk 0:01:14]} 31. Rf1 {[%clk 0:00:52]}  Nd6 {[%clk 0:01:08]} 32. c3 {[%clk 0:00:48]}  Rc2 {[%clk 0:01:04]} 33. Ra1 {[%clk 0:00:47]}  a5 {[%clk 0:01:03]} 34. Be3 {[%clk 0:00:46]}  Nc4 {[%clk 0:00:48]} 35. Bd4 {[%clk 0:00:46]}  a4 {[%clk 0:00:44]} 36. Rxa4 {[%clk 0:00:45]}  b5 {[%clk 0:00:39]} 37. Ra7 {[%clk 0:00:45]}  e3 {[%clk 0:00:30]} 38. Kf1 {[%clk 0:00:43]}  f4 {[%clk 0:00:30]} 39. Rb7 {[%clk 0:00:42]}  Rb2 {[%clk 0:00:24]} 40. Bc5 {[%clk 0:00:40]}  e2+ {[%clk 0:00:11]} 41. Ke1 {[%clk 0:00:39]}  Ne3 {[%clk 0:00:11]} 42. Bxe3 {[%clk 0:00:38]}  fxe3 {[%clk 0:00:11]} 43. d6 {[%clk 0:00:38]}  Ke8 {[%clk 0:00:12]} 44. Rxe7+ {[%clk 0:00:37]}  Kd8 {[%clk 0:00:12]} 45. Rxe3 {[%clk 0:00:34]}  Rc2 {[%clk 0:00:10]} 46. g4 {[%clk 0:00:31]}  Kd7 {[%clk 0:00:10]} 47. Rd3 {[%clk 0:00:29]}  h6 {[%clk 0:00:09]} 48. h5 {[%clk 0:00:29]}  Ra2 {[%clk 0:00:08]} 49. Rd5 {[%clk 0:00:28]}  Rc2 {[%clk 0:00:06]} 50. Rxb5 {[%clk 0:00:28]}  Kxd6 {[%clk 0:00:06]} 51. Rf5 {[%clk 0:00:29]}  Ke6 {[%clk 0:00:06]} 52. Rf3 {[%clk 0:00:29]}  Ke5 {[%clk 0:00:06]} 53. Rf5+ {[%clk 0:00:28]}  Ke4 {[%clk 0:00:06]} 54. Rxf6 {[%clk 0:00:28]}  Ke3 {[%clk 0:00:07]} 55. Re6+ {[%clk 0:00:28]}  Kd3 {[%clk 0:00:08]} 56. Rd6+ {[%clk 0:00:27]}  Kxc3 {[%clk 0:00:08]} 57. g5 {[%clk 0:00:26]}  hxg5 {[%clk 0:00:06]} 58. h6 {[%clk 0:00:26]}  Ra2 {[%clk 0:00:06]} 59. h7 {[%clk 0:00:26]}  Ra8 {[%clk 0:00:06]} 60. Kxe2 {[%clk 0:00:24]}  Rh8 {[%clk 0:00:06]} 61. Rd7 {[%clk 0:00:24]}  Kc4 {[%clk 0:00:06]} 62. Kf3 {[%clk 0:00:24]}  Kc5 {[%clk 0:00:07]} 63. Kg4 {[%clk 0:00:25]}  Kc6 {[%clk 0:00:07]} 64. Rg7 {[%clk 0:00:25]}  Kd6 {[%clk 0:00:07]} 65. Kxg5 {[%clk 0:00:25]}  Ke6 {[%clk 0:00:08]} 66. Kg6 {[%clk 0:00:26]}  Ra8 {[%clk 0:00:06]} 67. Rg8 {[%clk 0:00:23]}  Ra1 {[%clk 0:00:06]} 68. h8=Q {[%clk 0:00:21]}  Rg1+ {[%clk 0:00:06]} 69. Kh5 {[%clk 0:00:21]}  Rh1+ {[%clk 0:00:07]} 70. Kg4 {[%clk 0:00:22]}  Rh7 {[%clk 0:00:07]} 71. Qxh7 {[%clk 0:00:19]} 1-0


[Site "https://www.chess.com"]

[Event "Titled Tuesday Blitz March 28 Early 2023"]
[White "Ciuffoletti, Paolo"]
[Black "Ezat, Mohamed"]
[WhiteFideId "807630"]
[BlackFideId "10600906"]
[WhiteElo "2143"]
[BlackElo "2386"]
[Result "0-1"]
[Round "01"]
[TimeControl "180+2"]
[Date "2023.03.28"]
[WhiteClock "0:00:01"]
[BlackClock "0:01:08"]

1. e4 {[%clk 0:02:58]}  e5 {[%clk 0:02:58]} 2. Nf3 {[%clk 0:02:58]}  Nc6 {[%clk 0:02:57]} 3. Bc4 {[%clk 0:02:58]}  Nf6 {[%clk 0:02:55]} 4. d4 {[%clk 0:02:57]}  exd4 {[%clk 0:02:52]} 5. Ng5 {[%clk 0:02:57]}  Ne5 {[%clk 0:02:46]} 6. Bb3 {[%clk 0:02:56]}  h6 {[%clk 0:02:44]} 7. f4 {[%clk 0:02:56]}  hxg5 {[%clk 0:02:43]} 8. fxe5 {[%clk 0:02:57]}  Nxe4 {[%clk 0:02:39]} 9. Qxd4 {[%clk 0:02:56]}  Nc5 {[%clk 0:02:33]} 10. Be3 {[%clk 0:02:50]}  Ne6 {[%clk 0:02:31]} 11. Bxe6 {[%clk 0:02:43]}  dxe6 {[%clk 0:02:28]} 12. Qxd8+ {[%clk 0:02:36]}  Kxd8 {[%clk 0:02:23]} 13. Bxg5+ {[%clk 0:02:36]}  Be7 {[%clk 0:02:20]} 14. Bf4 {[%clk 0:02:09]}  Bd7 {[%clk 0:01:47]} 15. Nc3 {[%clk 0:02:07]}  Bc6 {[%clk 0:01:46]} 16. O-O-O+ {[%clk 0:02:05]}  Kc8 {[%clk 0:01:45]} 17. Rhe1 {[%clk 0:01:21]}  b6 {[%clk 0:01:40]} 18. Ne4 {[%clk 0:01:01]}  Kb7 {[%clk 0:01:38]} 19. Bg3 {[%clk 0:00:33]}  Rad8 {[%clk 0:01:35]} 20. Rxd8 {[%clk 0:00:22]}  Rxd8 {[%clk 0:01:34]} 21. Re2 {[%clk 0:00:18]}  Rd4 {[%clk 0:01:34]} 22. Nc3 {[%clk 0:00:15]}  Bg5+ {[%clk 0:01:32]} 23. Kb1 {[%clk 0:00:15]}  Rd2 {[%clk 0:01:29]} 24. Rxd2 {[%clk 0:00:14]}  Bxd2 {[%clk 0:01:28]} 25. h4 {[%clk 0:00:05]}  Bxg2 {[%clk 0:01:27]} 26. a3 {[%clk 0:00:04]}  Kc6 {[%clk 0:01:17]} 27. Nd1 {[%clk 0:00:04]}  Kd5 {[%clk 0:01:14]} 28. b3 {[%clk 0:00:02]}  Bf3 {[%clk 0:01:12]} 29. Nf2 {[%clk 0:00:01]}  Be1 {[%clk 0:01:08]} 0-1


[Site "https://www.chess.com"]

[Event "Titled Tuesday Blitz March 28 Early 2023"]
[White "Souleidis, Georgios"]
[Black "Rose, Felix"]
[WhiteFideId "4206827"]
[BlackFideId "5105722"]
[WhiteElo "2401"]
[BlackElo "2039"]
[Result "1-0"]
[Round "01"]
[TimeControl "180+2"]
[Date "2023.03.28"]
[WhiteClock "0:00:08"]
[BlackClock "0:00:01"]

1. e4 {[%clk 0:02:57]}  e5 {[%clk 0:02:59]} 2. Nc3 {[%clk 0:02:57]}  Nf6 {[%clk 0:02:51]} 3. d4 {[%clk 0:02:57]}  exd4 {[%clk 0:02:50]} 4. Qxd4 {[%clk 0:02:58]}  Nc6 {[%clk 0:02:49]} 5. Qd3 {[%clk 0:02:58]}  Bb4 {[%clk 0:02:43]} 6. Bd2 {[%clk 0:02:58]}  O-O {[%clk 0:02:31]} 7. O-O-O {[%clk 0:02:52]}  Re8 {[%clk 0:02:29]} 8. Nge2 {[%clk 0:02:50]}  a5 {[%clk 0:02:24]} 9. a3 {[%clk 0:02:37]}  Bf8 {[%clk 0:02:21]} 10. h4 {[%clk 0:02:25]}  b5 {[%clk 0:02:12]} 11. Qxb5 {[%clk 0:02:05]}  Nxe4 {[%clk 0:01:57]} 12. Nxe4 {[%clk 0:02:03]}  Rxe4 {[%clk 0:01:57]} 13. Bg5 {[%clk 0:01:51]}  Qe8 {[%clk 0:01:45]} 14. Nc3 {[%clk 0:01:40]}  Rb8 {[%clk 0:01:12]} 15. Qd5 {[%clk 0:01:14]}  Re5 {[%clk 0:01:02]} 16. Qf3 {[%clk 0:01:07]}  d6 {[%clk 0:00:15]} 17. Bc4 {[%clk 0:00:33]}  Rf5 {[%clk 0:00:09]} 18. Qg3 {[%clk 0:00:28]}  Be6 {[%clk 0:00:08]} 19. Rhe1 {[%clk 0:00:22]}  Ne5 {[%clk 0:00:04]} 20. Bxe6 {[%clk 0:00:18]}  fxe6 {[%clk 0:00:02]} 21. Rd4 {[%clk 0:00:08]}  c5 {[%clk 0:00:01]} 22. Rf4 {[%clk 0:00:08]} 1-0


[Site "https://www.chess.com"]

[Event "Titled Tuesday Blitz March 28 Early 2023"]
[White "Tagliata"]
[Black "Araujo Sanchez, Josue"]
[BlackFideId "6416896"]
[WhiteElo "2204"]
[BlackElo "2416"]
[Result "0-1"]
[Round "01"]
[TimeControl "180+2"]
[Date "2023.03.28"]
[WhiteClock "0:01:22"]
[BlackClock "0:01:44"]

1. e4 {[%clk 0:02:59]}  c5 {[%clk 0:02:57]} 2. Nf3 {[%clk 0:02:59]}  d6 {[%clk 0:02:56]} 3. Bb5+ {[%clk 0:02:58]}  Nd7 {[%clk 0:02:54]} 4. c4 {[%clk 0:02:55]}  Nf6 {[%clk 0:02:52]} 5. Nc3 {[%clk 0:02:55]}  g6 {[%clk 0:02:51]} 6. d3 {[%clk 0:02:52]}  Bg7 {[%clk 0:02:51]} 7. O-O {[%clk 0:02:39]}  O-O {[%clk 0:02:50]} 8. Ba4 {[%clk 0:02:39]}  a6 {[%clk 0:02:48]} 9. Rb1 {[%clk 0:02:36]}  Nb6 {[%clk 0:02:21]} 10. Bc2 {[%clk 0:02:34]}  Bg4 {[%clk 0:02:21]} 11. h3 {[%clk 0:02:32]}  Bxf3 {[%clk 0:02:21]} 12. Qxf3 {[%clk 0:02:33]}  Nfd7 {[%clk 0:02:21]} 13. Qe2 {[%clk 0:02:29]}  Ne5 {[%clk 0:02:21]} 14. f4 {[%clk 0:02:26]}  Nc6 {[%clk 0:02:21]} 15. Be3 {[%clk 0:02:22]}  Nd7 {[%clk 0:02:20]} 16. Qd2 {[%clk 0:02:18]}  Rb8 {[%clk 0:02:18]} 17. f5 {[%clk 0:02:18]}  b5 {[%clk 0:02:17]} 18. Bh6 {[%clk 0:02:11]}  bxc4 {[%clk 0:02:09]} 19. dxc4 {[%clk 0:02:12]}  Nde5 {[%clk 0:02:08]} 20. Bxg7 {[%clk 0:02:06]}  Kxg7 {[%clk 0:02:09]} 21. b3 {[%clk 0:02:06]}  Qa5 {[%clk 0:02:07]} 22. fxg6 {[%clk 0:02:00]}  hxg6 {[%clk 0:02:07]} 23. Rbd1 {[%clk 0:01:49]}  Nd4 {[%clk 0:02:06]} 24. Na4 {[%clk 0:01:47]}  Qxd2 {[%clk 0:02:00]} 25. Rxd2 {[%clk 0:01:48]}  e6 {[%clk 0:01:54]} 26. Rfd1 {[%clk 0:01:45]}  f5 {[%clk 0:01:53]} 27. exf5 {[%clk 0:01:42]}  gxf5 {[%clk 0:01:54]} 28. Nc3 {[%clk 0:01:34]}  Kf6 {[%clk 0:01:49]} 29. Ne2 {[%clk 0:01:34]}  Nec6 {[%clk 0:01:46]} 30. Re1 {[%clk 0:01:26]}  Rg8 {[%clk 0:01:45]} 31. Bb1 {[%clk 0:01:22]}  Nf3+ {[%clk 0:01:44]} 0-1


[Site "https://www.chess.com"]

[Event "Titled Tuesday Blitz March 28 Early 2023"]
[White "Tica, Sven"]
[Black "Torres Dominguez, David"]
[WhiteFideId "14526948"]
[BlackFideId "2220857"]
[WhiteElo "2348"]
[BlackElo "1999"]
[Result "1-0"]
[Round "01"]
[TimeControl "180+2"]
[Date "2023.03.28"]
[WhiteClock "0:00:54"]
[BlackClock "0:00:07"]

1. e4 {[%clk 0:02:54]}  Nc6 {[%clk 0:02:56]} 2. d4 {[%clk 0:02:50]}  e5 {[%clk 0:02:56]} 3. d5 {[%clk 0:02:49]}  Nce7 {[%clk 0:02:56]} 4. c4 {[%clk 0:02:50]}  Ng6 {[%clk 0:02:57]} 5. Nc3 {[%clk 0:02:50]}  Bc5 {[%clk 0:02:57]} 6. g3 {[%clk 0:02:49]}  Nf6 {[%clk 0:02:56]} 7. Bg2 {[%clk 0:02:49]}  d6 {[%clk 0:02:56]} 8. h3 {[%clk 0:02:49]}  O-O {[%clk 0:02:55]} 9. Nge2 {[%clk 0:02:49]}  a5 {[%clk 0:02:55]} 10. O-O {[%clk 0:02:47]}  Bd7 {[%clk 0:02:52]} 11. Qd3 {[%clk 0:02:47]}  h6 {[%clk 0:02:48]} 12. Be3 {[%clk 0:02:47]}  Bxe3 {[%clk 0:02:39]} 13. Qxe3 {[%clk 0:02:47]}  Nh7 {[%clk 0:02:38]} 14. f4 {[%clk 0:02:38]}  exf4 {[%clk 0:02:32]} 15. Nxf4 {[%clk 0:02:39]}  Nxf4 {[%clk 0:02:32]} 16. Rxf4 {[%clk 0:02:38]}  Qe7 {[%clk 0:02:23]} 17. Raf1 {[%clk 0:02:37]}  Rae8 {[%clk 0:02:19]} 18. Ne2 {[%clk 0:02:36]}  f5 {[%clk 0:02:11]} 19. Nd4 {[%clk 0:01:59]}  fxe4 {[%clk 0:02:04]} 20. Rxf8+ {[%clk 0:01:58]}  Nxf8 {[%clk 0:01:59]} 21. Rf4 {[%clk 0:01:58]}  Ng6 {[%clk 0:01:56]} 22. Rxe4 {[%clk 0:01:58]}  Qf8 {[%clk 0:01:56]} 23. Rxe8 {[%clk 0:01:57]}  Qxe8 {[%clk 0:01:56]} 24. Qxe8+ {[%clk 0:01:56]}  Bxe8 {[%clk 0:01:52]} 25. Ne6 {[%clk 0:01:57]}  c6 {[%clk 0:01:31]} 26. Nd8 {[%clk 0:01:57]}  Ne5 {[%clk 0:01:21]} 27. Nxb7 {[%clk 0:01:51]}  Nxc4 {[%clk 0:01:07]} 28. b3 {[%clk 0:01:50]}  Ne5 {[%clk 0:01:04]} 29. Nxd6 {[%clk 0:01:50]}  Bd7 {[%clk 0:01:03]} 30. dxc6 {[%clk 0:01:48]}  Bxc6 {[%clk 0:01:01]} 31. Nc4 {[%clk 0:01:46]}  Nxc4 {[%clk 0:00:57]} 32. Bxc6 {[%clk 0:01:41]}  Ne5 {[%clk 0:00:50]} 33. Bd5+ {[%clk 0:01:41]}  Kf8 {[%clk 0:00:51]} 34. Kf2 {[%clk 0:01:42]}  Ke7 {[%clk 0:00:51]} 35. Ke3 {[%clk 0:01:42]}  Kd6 {[%clk 0:00:52]} 36. Kd4 {[%clk 0:01:42]}  Nd7 {[%clk 0:00:49]} 37. a3 {[%clk 0:01:41]}  Nf6 {[%clk 0:00:45]} 38. Bf3 {[%clk 0:01:40]}  g5 {[%clk 0:00:40]} 39. h4 {[%clk 0:01:35]}  g4 {[%clk 0:00:34]} 40. Be4 {[%clk 0:01:33]}  Nh5 {[%clk 0:00:32]} 41. Bf5 {[%clk 0:01:30]}  Nxg3 {[%clk 0:00:32]} 42. Bxg4 {[%clk 0:01:31]}  h5 {[%clk 0:00:25]} 43. Bh3 {[%clk 0:01:10]}  Ne2+ {[%clk 0:00:25]} 44. Kc4 {[%clk 0:01:10]}  Nf4 {[%clk 0:00:23]} 45. Bf1 {[%clk 0:01:07]}  Ng6 {[%clk 0:00:19]} 46. Kb5 {[%clk 0:01:05]}  Nxh4 {[%clk 0:00:19]} 47. Kxa5 {[%clk 0:01:04]}  Nf5 {[%clk 0:00:19]} 48. b4 {[%clk 0:01:04]}  Ne3 {[%clk 0:00:17]} 49. Be2 {[%clk 0:00:58]}  h4 {[%clk 0:00:17]} 50. b5 {[%clk 0:00:59]}  h3 {[%clk 0:00:17]} 51. Ka6 {[%clk 0:00:59]}  h2 {[%clk 0:00:16]} 52. Bf3 {[%clk 0:00:59]}  Nc4 {[%clk 0:00:08]} 53. Ka7 {[%clk 0:00:54]}  Kc7 {[%clk 0:00:07]} 54. a4 {[%clk 0:00:54]} 1-0


[Site "https://www.chess.com"]

[Event "Titled Tuesday Blitz March 28 Early 2023"]
[White "Tokhirjonova, Gulrukhbegim"]
[Black "Kiseleva, Arina"]
[WhiteFideId "14203626"]
[BlackFideId "4164989"]
[WhiteElo "2268"]
[BlackElo "1756"]
[Result "1-0"]
[Round "01"]
[TimeControl "180+2"]
[Date "2023.03.28"]
[WhiteClock "0:01:48"]
[BlackClock "0:00:18"]

1. c4 {[%clk 0:02:59]}  Nf6 {[%clk 0:02:59]} 2. Nc3 {[%clk 0:02:59]}  e6 {[%clk 0:02:59]} 3. Nf3 {[%clk 0:02:58]}  d5 {[%clk 0:02:57]} 4. d4 {[%clk 0:02:58]}  Be7 {[%clk 0:02:57]} 5. cxd5 {[%clk 0:02:56]}  exd5 {[%clk 0:02:57]} 6. Bf4 {[%clk 0:02:57]}  c6 {[%clk 0:02:57]} 7. e3 {[%clk 0:02:58]}  O-O {[%clk 0:02:56]} 8. Bd3 {[%clk 0:02:58]}  Nbd7 {[%clk 0:02:51]} 9. O-O {[%clk 0:02:58]}  Nh5 {[%clk 0:02:47]} 10. Be5 {[%clk 0:02:50]}  Nxe5 {[%clk 0:02:43]} 11. dxe5 {[%clk 0:02:50]}  g6 {[%clk 0:02:42]} 12. h3 {[%clk 0:02:47]}  Ng7 {[%clk 0:02:41]} 13. Rc1 {[%clk 0:02:39]}  Bf5 {[%clk 0:02:39]} 14. Re1 {[%clk 0:02:32]}  Bxd3 {[%clk 0:02:35]} 15. Qxd3 {[%clk 0:02:30]}  Qd7 {[%clk 0:02:36]} 16. e4 {[%clk 0:02:28]}  Rad8 {[%clk 0:02:10]} 17. Red1 {[%clk 0:02:26]}  Ne6 {[%clk 0:02:04]} 18. exd5 {[%clk 0:02:20]}  Nf4 {[%clk 0:01:56]} 19. Qe3 {[%clk 0:02:18]}  Nxd5 {[%clk 0:01:56]} 20. Qxa7 {[%clk 0:02:16]}  Bb4 {[%clk 0:01:06]} 21. Nxd5 {[%clk 0:02:09]}  cxd5 {[%clk 0:01:07]} 22. Qb6 {[%clk 0:02:08]}  Qe7 {[%clk 0:00:49]} 23. Rc7 {[%clk 0:02:03]}  Rd7 {[%clk 0:00:31]} 24. Rxd7 {[%clk 0:02:02]}  Qxd7 {[%clk 0:00:32]} 25. Qxb4 {[%clk 0:02:03]}  Ra8 {[%clk 0:00:31]} 26. a3 {[%clk 0:01:59]}  h6 {[%clk 0:00:29]} 27. Qc5 {[%clk 0:01:58]}  Rd8 {[%clk 0:00:27]} 28. Nd4 {[%clk 0:01:56]}  Qa4 {[%clk 0:00:21]} 29. b3 {[%clk 0:01:54]}  Qa6 {[%clk 0:00:20]} 30. e6 {[%clk 0:01:53]}  fxe6 {[%clk 0:00:19]} 31. Qe7 {[%clk 0:01:52]}  Rd6 {[%clk 0:00:18]} 32. Rc1 {[%clk 0:01:48]} 1-0


[Site "https://www.chess.com"]